bitfinex-derivatives/quotes_SOLF0:USTF0_20241231
["timestamp","ask_amount","ask_price","bid_price","bid_amount"]
[1735624201087,62.49452412,189.06,188.92,7.7363993]
[1735624201292,7.7363993,189.0,188.92,7.7363993]
[1735624201495,10.3857993,189.0,188.94,7.7363993]
[1735624201893,1.4841,189.03,188.96,7.7363993]
[1735624202094,4.1331,189.03,188.97,2.6496]
[1735624202295,1.4841,189.03,188.96,7.7363993]
[1735624203393,2.649,189.02,188.97,2.6497]
[1735624203988,2.6493,189.0,188.96,7.7363993]
[1735624204193,7.7363993,189.0,188.93,7.7363993]
[1735624204488,7.7363993,188.98,188.91,1.5503]
[1735624204691,2.65,188.96,188.91,1.5503]
[1735624205291,2.65,188.96,188.92,7.7363993]
[1735624206290,7.7363993,188.98,188.92,7.7363993]
[1735624206486,2.6497,188.97,188.92,10.3867993]
[1735624207194,2.6499,188.96,188.92,7.7363993]
[1735624208401,7.7363993,188.98,188.92,7.7363993]
[1735624210396,10.3859993,188.98,188.93,2.6502]
[1735624211296,7.7363993,189.02,188.96,7.7363993]
[1735624212199,2.6488,189.04,188.99,2.6494]
[1735624213104,10.3849993,189.05,189.0,2.6492]
[1735624213994,2.6487,189.04,189.0,2.6492]
[1735624214197,7.7363993,189.05,188.98,7.7363993]
[1735624215103,10.7763993,189.05,188.98,7.7363993]
[1735624215403,2.6489,189.03,188.98,10.3859993]
[1735624216000,3.04,189.05,188.99,2.6494]
[1735624216206,2.6488,189.04,188.99,2.6494]
[1735624219703,1.5909,189.09,188.98,7.7363993]
[1735624219904,9.3272993,189.09,189.02,7.7363993]
[1735624220609,7.7363993,189.09,189.02,7.7363993]
[1735624222007,7.7363993,189.07,189.0,10.8164993]
[1735624222211,7.7363993,189.05,188.98,7.7363993]
[1735624222408,7.7363993,189.05,188.92,1.5138]
[1735624222409,7.7363993,189.03,188.95,1.5624]
[1735624222608,2.6492,189.01,188.96,7.7363993]
[1735624223005,7.7363993,189.01,188.95,1.5624]
[1735624223310,2.6495,188.99,188.95,4.2124]
[1735624225503,2.6495,188.99,188.96,7.7363993]
[1735624226314,2.6495,188.99,188.95,4.2124]
[1735624226510,2.6495,188.99,188.95,1.5624]
[1735624227110,7.7363993,189.03,188.95,1.5624]
[1735624227307,7.7363993,189.03,188.96,7.7363993]
[1735624228718,7.7363993,189.01,188.95,1.5624]
[1735624229416,2.6496,188.99,188.95,1.5624]
[1735624230115,7.7363993,189.01,188.95,1.5624]
[1735624230312,2.6493,189.0,188.95,4.2124]
[1735624230910,2.6493,189.0,188.95,1.5624]
[1735624231109,2.6493,189.0,188.96,2.6498]
[1735624231313,7.7363993,189.02,188.95,1.5624]
[1735624232020,10.3853993,189.02,188.97,2.6497]
[1735624232817,2.6494,189.0,188.95,4.2123]
[1735624233918,10.3854993,189.02,188.96,2.6498]
[1735624234117,10.3854993,189.02,188.96,10.3861993]
[1735624234321,1.1888,189.1,188.98,7.7363993]
[1735624234519,10.3846993,189.07,189.02,2.649]
[1735624235423,2.6485,189.06,189.02,2.649]
[1735624235920,2.6485,189.06,189.01,2.6491]
[1735624236510,7.7363993,189.07,189.0,7.7363993]
[1735624236714,7.7363993,189.05,188.98,7.7363993]
[1735624237516,2.649,189.03,188.98,10.3858993]
[1735624238018,2.649,189.03,188.95,1.5624]
[1735624238019,2.6482,189.08,189.0,7.7363993]
[1735624238220,7.7363993,189.08,189.0,7.7363993]
[1735624238614,7.7363993,189.06,189.0,7.7363993]
[1735624238817,7.7363993,189.06,188.98,7.7363993]
[1735624239726,2.6489,189.03,188.98,10.3859993]
[1735624239921,7.7363993,189.04,188.96,7.7363993]
[1735624240720,3.06,189.06,188.9,7.33613956]
[1735624240926,7.7363993,188.91,188.9,7.33613956]
[1735624241117,10.7963993,188.91,188.85,23.29989351]
[1735624241418,2.6508,188.89,188.87,60.08354403]
[1735624241623,7.7363993,188.88,188.87,60.08354403]
[1735624241928,8.54821921,188.88,188.87,60.08354403]
[1735624242113,2.6519,188.82,188.76,3.1177]
[1735624242314,10.7963993,188.81,188.76,3.1177]
[1735624244222,3.06,188.81,188.76,3.1177]
[1735624244427,12.14557999,188.84,188.76,3.1177]
[1735624244629,3.06,188.83,188.76,3.1177]
[1735624246320,3.06,188.83,188.76,1.5193]
[1735624246528,12.14557999,188.81,188.65,4.6336]
[1735624246828,12.14557999,188.78,188.65,16.77917999]
[1735624247022,3.06,188.77,188.65,16.77917999]
[1735624247220,2.6527,188.76,188.68,2.6537]
[1735624247428,3.06,188.77,188.65,16.77917999]
[1735624248018,2.6528,188.75,188.65,16.77917999]
[1735624248225,2.6528,188.75,188.68,2.6538]
[1735624248424,3.06,188.77,188.65,16.77917999]
[1735624248623,5.7125,188.77,188.68,2.6537]
[1735624248822,5.7125,188.77,188.65,16.77917999]
[1735624249525,5.7125,188.77,188.69,2.6536]
[1735624249722,12.14557999,188.78,188.65,16.77917999]
[1735624249926,3.08,188.77,188.65,16.77917999]
[1735624250130,3.08,188.77,188.7,2.6534]
[1735624251227,12.14557999,188.78,188.7,2.6534]
[1735624251428,3.08,188.77,188.65,16.77917999]
[1735624251730,5.7325,188.77,188.65,16.77917999]
[1735624252729,3.08,188.77,188.65,16.77917999]
[1735624252925,2.6527,188.76,188.69,2.6536]
[1735624253822,3.08,188.77,188.69,2.6536]
[1735624254028,2.6531,188.73,188.67,2.6538]
[1735624254229,3.08,188.77,188.65,4.6336]
[1735624255029,2.653,188.74,188.68,2.6538]
[1735624255721,2.6528,188.75,188.68,2.6538]
[1735624256124,7.35452412,188.86,188.7,2.6535]
[1735624256332,2.6522,188.8,188.69,12.14557999]
[1735624256828,3.08,188.79,188.69,12.14557999]
[1735624257225,2.6522,188.8,188.74,2.6529]
[1735624257527,3.08,188.79,188.74,2.6529]
[1735624258225,2.6522,188.8,188.74,2.6529]
[1735624258425,5.7323,188.79,188.74,2.6529]
[1735624258934,5.7323,188.79,188.72,2.6531]
[1735624259923,12.14557999,188.83,188.69,12.14557999]
[1735624260125,3.08,188.82,188.72,12.14557999]
[1735624260330,3.08,188.82,188.73,1.5971]
[1735624260732,5.7319,188.82,188.76,2.6526]
[1735624261031,2.6519,188.82,188.76,2.6526]
[1735624262033,2.6516,188.84,188.74,3.0657]
[1735624263436,12.14557999,188.86,188.81,2.6519]
[1735624264024,12.14557999,188.86,188.76,3.08]
[1735624264226,2.6516,188.84,188.79,2.6521]
[1735624265334,2.6518,188.82,188.77,2.6524]
[1735624265529,12.14557999,188.86,188.76,3.08]
[1735624265931,2.652,188.81,188.76,2.6526]
[1735624266528,2.6524,188.78,188.74,3.0657]
[1735624266732,3.08,188.82,188.74,3.0657]
[1735624266933,12.14557999,188.8,188.74,3.0657]
[1735624267139,12.14557999,188.8,188.74,1.5234]
[1735624267437,12.14557999,188.8,188.69,1.5596]
[1735624267627,12.14557999,188.8,188.69,3.1241]
[1735624269432,2.6527,188.76,188.71,2.6534]
[1735624272336,3.08,188.81,188.72,12.14557999]
[1735624272729,7.35452412,188.84,188.76,2.6526]
[1735624272928,7.35452412,188.84,188.75,12.14557999]
[1735624273130,7.35452412,188.84,188.76,1.5202]
[1735624273332,3.08,188.86,188.76,1.5202]
[1735624274529,2.6517,188.83,188.78,2.6522]
[1735624275336,3.08,188.86,188.78,2.6522]
[1735624275534,3.08,188.86,188.76,1.5202]
[1735624276036,7.35452412,188.85,188.76,1.5202]
[1735624276937,43.67527881,188.85,188.8,2.6521]
[1735624277437,43.67527881,188.85,188.76,1.5202]
[1735624277838,58.83619298,188.86,188.76,1.5202]
[1735624277839,7.35452412,188.86,188.76,1.5202]
[1735624278027,2.6514,188.85,188.76,1.5202]
[1735624278943,2.6514,188.85,188.81,2.652]
[1735624279836,2.6514,188.85,188.8,2.6521]
[1735624280337,2.6515,188.84,188.8,2.6521]
[1735624280538,7.35452412,188.87,188.8,2.6521]
[1735624280942,7.35452412,188.87,188.79,3.0707]
[1735624281243,2.6514,188.85,188.81,2.6519]
[1735624281642,2.6514,188.85,188.8,2.652]
[1735624282832,12.14557999,188.88,188.79,3.0707]
[1735624283036,2.6513,188.86,188.81,2.6518]
[1735624284331,2.6516,188.84,188.79,3.0707]
[1735624284535,12.14557999,188.88,188.79,3.0707]
[1735624285135,19.50010411,188.88,188.79,3.0707]
[1735624286036,12.14557999,188.85,188.76,4.1727]
[1735624286343,12.14557999,188.82,188.72,12.14557999]
[1735624286533,12.14557999,188.82,188.71,1.5266]
[1735624286940,12.14557999,188.82,188.71,4.1798]
[1735624287141,41.56367647,188.82,188.71,4.1798]
[1735624287539,2.6525,188.77,188.71,4.1798]
[1735624287839,2.6525,188.77,188.72,2.6532]
[1735624288240,2.6524,188.79,188.72,2.6532]
[1735624288441,43.65831833,188.81,188.75,2.6527]
[1735624288839,29.41809648,188.81,188.75,2.6527]
[1735624289238,32.07019648,188.81,188.75,2.6527]
[1735624289442,29.41809648,188.81,188.76,2.6525]
[1735624289944,7.35452412,188.81,188.76,2.6525]
[1735624290141,2.6518,188.82,188.72,12.14557999]
[1735624290342,2.6518,188.82,188.75,2.6528]
[1735624291038,10.00632412,188.82,188.75,2.6528]
[1735624291239,10.00632412,188.82,188.76,2.6526]
[1735624291843,2.652,188.81,188.76,2.6526]
[1735624292439,10.00652412,188.81,188.76,2.6526]
[1735624293348,2.6521,188.8,188.75,2.6528]
[1735624293544,19.50010411,188.82,188.71,1.5266]
[1735624293942,2.6525,188.78,188.73,2.653]
[1735624294146,19.50010411,188.82,188.71,1.5266]
[1735624294342,19.50010411,188.82,188.69,15.22557999]
[1735624294343,7.35452412,188.8,188.69,15.22557999]
[1735624295544,2.6526,188.77,188.72,2.6532]
[1735624298445,29.41809648,188.81,188.69,12.14557999]
[1735624298753,2.6521,188.8,188.75,2.6528]
[1735624299849,3.08,188.81,188.75,2.6528]
[1735624300047,2.6522,188.79,188.75,2.6528]
[1735624301853,2.6524,188.78,188.69,12.14557999]
[1735624302455,2.6527,188.77,188.72,2.6531]
[1735624302647,3.08,188.81,188.69,12.14557999]
[1735624302648,12.14557999,188.8,188.69,12.14557999]
[1735624304354,2.6528,188.75,188.71,2.6533]
[1735624304555,12.14557999,188.8,188.67,1.5116]
[1735624304953,2.6529,188.75,188.7,2.6535]
[1735624306552,2.6528,188.76,188.71,2.6533]
[1735624306859,2.6528,188.76,188.67,1.5116]
[1735624307057,2.6528,188.76,188.7,2.6534]
[1735624307660,2.6528,188.76,188.67,1.5116]
[1735624308463,2.6528,188.76,188.71,2.6533]
[1735624308761,3.08,188.76,188.67,1.5116]
[1735624308961,3.08,188.76,188.66,15.16177999]
[1735624309163,2.6533,188.72,188.67,2.6538]
[1735624309660,3.08,188.76,188.67,2.6538]
[1735624309861,2.6534,188.71,188.67,2.6538]
[1735624314062,7.77996853,188.74,188.68,7.77996853]
[1735624314367,2.653,188.74,188.7,2.6535]
[1735624315269,2.653,188.74,188.68,7.77996853]
[1735624315270,2.6531,188.73,188.69,2.6536]
[1735624316873,10.85996853,188.76,188.69,2.6536]
[1735624317063,2.653,188.74,188.69,2.6536]
[1735624318968,7.77996853,188.74,188.69,2.6536]
[1735624319275,2.6531,188.73,188.68,10.43376853]
[1735624320176,7.77996853,188.72,188.66,2.654]
[1735624320371,7.77996853,188.7,188.63,7.77996853]
[1735624320777,2.6538,188.69,188.63,7.77996853]
[1735624321177,7.77996853,188.7,188.6,3.1822]
[1735624321378,7.77996853,188.7,188.63,7.77996853]
[1735624322481,2.6538,188.68,188.64,2.6543]
[1735624322880,7.77996853,188.7,188.64,2.6543]
[1735624323177,7.77996853,188.7,188.6,3.1822]
[1735624323178,3.08,188.7,188.66,2.654]
[1735624323381,3.08,188.7,188.65,7.77996853]
[1735624323770,3.08,188.7,188.66,2.654]
[1735624324879,3.08,188.7,188.65,10.43416853]
[1735624325181,3.08,188.7,188.63,7.77996853]
[1735624326280,3.08,188.7,188.64,2.6542]
[1735624326281,2.6538,188.69,188.64,2.6542]
[1735624330378,2.6543,188.65,188.6,11.99596853]
[1735624330579,7.77996853,188.68,188.6,9.34116853]
[1735624331183,2.6542,188.66,188.62,2.6546]
[1735624331784,2.6539,188.68,188.64,2.6543]
[1735624331977,3.08,188.7,188.62,7.77996853]
[1735624332988,2.6538,188.68,188.63,2.6544]
[1735624333184,3.08,188.7,188.62,7.77996853]
[1735624333383,29.41809648,188.73,188.66,7.77996853]
[1735624333581,29.41809648,188.73,188.68,7.77996853]
[1735624333777,7.35452412,188.72,188.68,7.77996853]
[1735624334482,7.35452412,188.72,188.7,7.77996853]
[1735624334685,58.83619298,188.74,188.7,7.77996853]
[1735624334686,7.35452412,188.77,188.7,7.77996853]
[1735624334986,7.77996853,188.76,188.7,7.77996853]
[1735624335683,10.43266853,188.76,188.71,2.6534]
[1735624336580,2.6529,188.75,188.69,2.6535]
[1735624336787,7.77996853,188.74,188.68,7.77996853]
[1735624336983,7.77996853,188.72,188.67,1.6244]
[1735624337187,10.43326853,188.72,188.67,1.6244]
[1735624338992,7.77996853,188.7,188.62,3.0754]
[1735624339192,7.77996853,188.7,188.64,2.6542]
[1735624339485,7.77996853,188.7,188.63,7.77996853]
[1735624340595,7.77996853,188.7,188.65,2.6541]
[1735624340787,2.6534,188.71,188.65,10.43406853]
[1735624341188,2.6534,188.71,188.66,2.654]
[1735624342990,2.6535,188.7,188.66,2.654]
[1735624343483,7.77996853,188.72,188.64,7.77996853]
[1735624343685,2.6537,188.69,188.64,7.77996853]
[1735624344090,2.6537,188.69,188.64,10.43426853]
[1735624344294,2.6538,188.68,188.64,10.43426853]
[1735624344497,2.6538,188.68,188.62,12.39996853]
[1735624344994,2.654,188.67,188.62,15.05456853]
[1735624345492,10.83996853,188.68,188.62,15.05456853]
[1735624345696,2.6541,188.66,188.62,3.0765]
[1735624346993,2.6543,188.64,188.62,3.0765]
[1735624349905,7.35452412,188.68,188.63,7.77996853]
[1735624350805,10.00832412,188.68,188.63,10.43446853]
[1735624351004,2.6538,188.68,188.63,10.43446853]
[1735624353802,29.41809648,188.71,188.63,7.77996853]
[1735624354002,2.6536,188.7,188.65,2.6541]
[1735624355313,7.35452412,188.72,188.67,7.77996853]
[1735624355818,7.35452412,188.72,188.69,7.77996853]
[1735624356202,7.35452412,188.72,188.7,2.6534]
[1735624356402,37.19806501,188.75,188.7,2.6534]
[1735624357507,10.43276853,188.75,188.7,2.6534]
[1735624358298,7.35452412,188.76,188.71,2.6533]
[1735624358504,7.35452412,188.76,188.71,10.43326853]
[1735624358907,7.35452412,188.76,188.72,2.6532]
[1735624359401,10.00722412,188.76,188.71,9.33596853]
[1735624359608,10.00722412,188.76,188.71,1.556]
[1735624359806,2.6527,188.76,188.71,1.556]
[1735624361805,2.6527,188.76,188.71,4.2093]
[1735624362005,2.6525,188.78,188.71,9.33596853]
[1735624362200,2.6525,188.78,188.71,10.95516853]
[1735624363411,7.35452412,188.82,188.75,7.77996853]
[1735624363603,7.35452412,188.82,188.77,7.77996853]
[1735624364013,29.41809648,188.83,188.78,1.4731]
[1735624364416,32.06989648,188.83,188.78,4.1255]
[1735624364613,29.41809648,188.83,188.79,7.77996853]
[1735624365514,99.094258,188.86,188.79,7.77996853]
[1735624365515,10.83996853,188.86,188.79,7.77996853]
[1735624366511,2.6517,188.83,188.79,7.77996853]
[1735624366918,2.6517,188.83,188.78,1.4731]
[1735624367107,2.652,188.81,188.78,1.4731]
[1735624368414,2.6518,188.83,188.78,1.4731]
[1735624371920,2.6518,188.82,188.78,1.4731]
[1735624375120,2.6521,188.81,188.78,1.4731]
[1735624376927,2.6521,188.8,188.78,1.4731]
[1735624378728,3.06,188.86,188.78,4.1254]
[1735624378729,2.6518,188.83,188.78,4.1254]
[1735624379627,2.6519,188.82,188.78,4.1254]
[1735624379932,7.77996853,188.84,188.78,1.4731]
[1735624380125,7.77996853,188.82,188.78,1.4731]
[1735624381225,7.77996853,188.8,188.73,7.77996853]
[1735624382126,7.77996853,188.82,188.76,2.6526]
[1735624382332,7.77996853,188.82,188.75,7.77996853]
[1735624383130,2.6521,188.81,188.77,2.6525]
[1735624385635,2.6521,188.81,188.78,2.6524]
[1735624385835,7.77996853,188.82,188.78,2.6524]
[1735624386035,10.43176853,188.82,188.78,2.6524]
[1735624388534,10.43176853,188.82,188.75,7.77996853]
[1735624388734,10.43176853,188.82,188.79,2.6522]
[1735624388931,7.77996853,188.82,188.79,2.6522]
[1735624389134,7.77996853,188.84,188.77,7.77996853]
[1735624389335,3.06,188.86,188.79,7.77996853]
[1735624389336,7.77996853,188.86,188.79,7.77996853]
[1735624389736,7.77996853,188.86,188.79,9.40846853]
[1735624390434,10.43126853,188.86,188.81,2.6519]
[1735624391339,2.6511,188.87,188.82,2.6517]
[1735624391539,7.77996853,188.86,188.82,2.6517]
[1735624393041,10.43126853,188.86,188.82,2.6517]
[1735624394939,7.77996853,188.86,188.83,2.6515]
[1735624396434,7.77996853,188.86,188.79,9.40846853]
[1735624396435,29.41809648,188.88,188.79,1.6285]
[1735624396642,29.41809648,188.88,188.81,7.77996853]
[1735624397540,15.13449265,188.89,188.81,7.77996853]
[1735624397841,17.78549265,188.89,188.83,2.6516]
[1735624398343,17.78549265,188.89,188.81,7.77996853]
[1735624398739,7.77996853,188.89,188.81,7.77996853]
[1735624399536,10.43076853,188.89,188.84,2.6514]
[1735624401738,2.651,188.88,188.83,2.6517]
[1735624401938,7.77996853,188.87,188.79,12.44846853]
[1735624402740,7.77996853,188.85,188.79,9.40846853]
[1735624402942,7.77996853,188.85,188.79,1.6285]
[1735624403142,7.77996853,188.83,188.79,1.6285]
[1735624403342,2.6518,188.82,188.79,1.6285]
[1735624403545,7.77996853,188.83,188.79,1.6285]
[1735624403943,2.6521,188.81,188.79,1.6285]
[1735624405243,7.77996853,188.83,188.79,1.6285]
[1735624405548,2.6521,188.8,188.78,1.6053]
[1735624407237,2.652,188.81,188.78,1.6053]
[1735624408944,2.652,188.81,188.77,2.6525]
[1735624410252,2.6518,188.82,188.78,2.6524]
[1735624411250,29.41809648,188.84,188.77,7.77996853]
[1735624411452,7.35452412,188.84,188.79,7.77996853]
[1735624412048,7.35452412,188.84,188.81,2.6519]
[1735624412349,7.77996853,188.85,188.79,7.77996853]
[1735624413450,2.6515,188.84,188.8,2.6521]
[1735624414254,7.77996853,188.85,188.79,7.77996853]
[1735624414448,2.6519,188.82,188.78,4.2036]
[1735624414660,7.77996853,188.85,188.78,1.5512]
[1735624416354,10.43146853,188.85,188.8,2.6521]
[1735624416956,2.6516,188.84,188.8,2.6521]
[1735624417155,7.77996853,188.85,188.79,2.6522]
[1735624417954,2.6517,188.83,188.78,4.2036]
[1735624418363,2.6517,188.83,188.78,2.6524]
[1735624421561,10.43166853,188.83,188.78,2.6524]
[1735624422460,7.77996853,188.83,188.75,2.6527]
[1735624422762,7.77996853,188.81,188.75,2.6527]
[1735624422962,10.81996853,188.81,188.75,2.6527]
[1735624423364,18.17449265,188.81,188.75,2.6527]
[1735624424468,2.6521,188.8,188.75,2.6527]
[1735624424652,18.17449265,188.81,188.73,2.6529]
[1735624424653,7.77996853,188.79,188.73,2.6529]
[1735624425359,2.6524,188.78,188.74,2.6529]
[1735624425851,7.77996853,188.79,188.74,2.6529]
[1735624427362,10.43226853,188.79,188.74,2.6529]
[1735624429363,7.77996853,188.79,188.73,7.77996853]
[1735624429564,7.77996853,188.79,188.72,1.6283]
[1735624429565,7.35452412,188.8,188.76,2.6526]
[1735624429861,42.89006501,188.81,188.76,2.6526]
[1735624430162,40.23806501,188.81,188.75,7.77996853]
[1735624430358,29.41809648,188.81,188.77,7.77996853]
[1735624430563,29.41809648,188.83,188.77,7.77996853]
[1735624431864,10.43146853,188.84,188.79,2.6522]
[1735624433566,2.6515,188.84,188.79,2.6522]
[1735624438273,15.13449265,188.85,188.79,2.6522]
[1735624438475,2.6517,188.83,188.79,2.6522]
[1735624438875,2.6517,188.83,188.77,7.77996853]
[1735624439073,2.6517,188.83,188.78,2.6523]
[1735624439974,10.43166853,188.83,188.78,2.6523]
[1735624441473,2.6518,188.82,188.78,2.6523]
[1735624442069,29.41809648,188.85,188.77,7.77996853]
[1735624442276,29.41809648,188.85,188.79,7.77996853]
[1735624442774,29.41809648,188.85,188.81,2.6518]
[1735624442975,61.48759298,188.86,188.81,2.6518]
[1735624442976,10.00592412,188.86,188.81,2.6518]
[1735624443166,7.35452412,188.86,188.81,2.6518]
[1735624443978,15.13449265,188.87,188.81,2.6518]
[1735624444475,2.6514,188.85,188.81,2.6518]
[1735624449183,2.6513,188.86,188.82,2.6518]
[1735624450080,7.77996853,188.87,188.82,2.6518]
[1735624450281,10.43106853,188.87,188.81,7.77996853]
[1735624450581,10.43106853,188.87,188.83,2.6517]
[1735624453985,2.6511,188.87,188.83,2.6517]
[1735624454990,2.6511,188.87,188.81,7.77996853]
[1735624455193,2.6511,188.87,188.84,2.6515]
[1735624457093,7.77996853,188.87,188.84,2.6515]
[1735624458391,5.6909,188.89,188.84,2.6515]
[1735624458585,7.77996853,188.88,188.84,2.6515]
[1735624458789,7.77996853,188.88,188.85,2.6514]
[1735624464789,7.77996853,188.88,188.79,4.5693]
[1735624464994,7.77996853,188.88,188.84,2.6515]
[1735624465397,7.77996853,188.86,188.79,12.34926853]
[1735624465595,10.43126853,188.86,188.79,12.34926853]
[1735624466498,10.43126853,188.86,188.82,2.6518]
[1735624468498,2.6513,188.86,188.82,2.6518]
[1735624468899,7.35452412,188.87,188.85,2.6514]
[1735624469100,7.35452412,188.87,188.81,7.77996853]
[1735624470000,7.35452412,188.88,188.85,2.6513]
[1735624471004,39.84886501,188.89,188.85,2.6513]
[1735624472605,29.41809648,188.89,188.86,2.6512]
[1735624474302,39.84876501,188.9,188.86,2.6512]
[1735624475506,37.19806501,188.9,188.82,3.04]
[1735624475701,10.43106853,188.88,188.82,3.04]
[1735624476306,2.6511,188.87,188.83,2.6517]
[1735624477108,7.35452412,188.89,188.79,4.5693]
[1735624477109,7.77996853,188.86,188.79,9.30926853]
[1735624478203,10.43126853,188.86,188.79,9.30926853]
[1735624479411,10.43126853,188.86,188.82,2.6518]
[1735624481514,2.6513,188.86,188.82,2.6518]
[1735624482214,15.13449265,188.87,188.81,7.77996853]
[1735624482215,37.19806501,188.87,188.81,7.77996853]
[1735624482813,29.41809648,188.87,188.81,7.77996853]
[1735624483110,29.41809648,188.87,188.86,2.6513]
[1735624484610,37.19806501,188.89,188.86,2.6513]
[1735624485108,37.19806501,188.89,188.87,2.6511]
[1735624486314,29.41809648,188.89,188.84,2.6514]
[1735624486607,29.41809648,188.89,188.83,7.77996853]
[1735624487014,7.35452412,188.89,188.87,2.651]
[1735624488108,15.13449265,188.89,188.83,7.77996853]
[1735624488309,15.13449265,188.89,188.85,2.6513]
[1735624489417,17.78539265,188.89,188.85,2.6513]
[1735624490819,10.43086853,188.89,188.85,2.6513]
[1735624491917,17.78539265,188.89,188.85,2.6513]
[1735624492818,39.84896501,188.89,188.85,2.6513]
[1735624493618,17.78539265,188.89,188.85,2.6513]
[1735624498217,10.00542412,188.89,188.85,2.6513]
[1735624501022,2.651,188.88,188.84,2.6515]
[1735624501223,15.13449265,188.89,188.81,7.77996853]
[1735624502024,15.13449265,188.89,188.83,7.77996853]
[1735624502229,43.76277808,188.88,188.83,7.77996853]
[1735624502420,46.41377808,188.88,188.84,2.6515]
[1735624503229,7.35452412,188.87,188.84,2.6515]
[1735624503626,7.35452412,188.87,188.86,2.6513]
[1735624505135,7.35452412,188.89,188.86,2.6513]
[1735624508840,10.00532412,188.89,188.86,2.6513]
[1735624514243,15.13449265,188.89,188.81,3.04]
[1735624514542,2.651,188.88,188.84,2.6515]
[1735624515143,15.13449265,188.89,188.84,2.6515]
[1735624515343,7.77996853,188.87,188.82,2.6518]
[1735624516142,43.77156427,188.86,188.82,2.6518]
[1735624516343,2.6515,188.85,188.81,2.6519]
[1735624516541,7.77996853,188.85,188.78,1.5227]
[1735624516735,7.77996853,188.83,188.76,7.77996853]
[1735624517243,46.81156427,188.86,188.78,7.77996853]
[1735624517244,7.77996853,188.85,188.78,7.77996853]
[1735624518446,7.35452412,188.84,188.81,2.6519]
[1735624518736,7.35452412,188.84,188.8,7.77996853]
[1735624519144,2.6514,188.85,188.81,2.6519]
[1735624519940,7.77996853,188.85,188.78,7.77996853]
[1735624520242,2.6517,188.84,188.79,2.6521]
[1735624520443,7.77996853,188.85,188.78,7.77996853]
[1735624520745,2.6514,188.85,188.81,2.6518]
[1735624521946,7.35452412,188.86,188.8,7.77996853]
[1735624522852,43.74814808,188.87,188.8,7.77996853]
[1735624523552,46.39924808,188.87,188.83,2.6517]
[1735624523753,10.00562412,188.87,188.83,2.6517]
[1735624524555,32.06919648,188.87,188.83,2.6517]
[1735624525649,2.6514,188.85,188.8,2.652]
[1735624525855,2.6514,188.85,188.79,7.77996853]
[1735624527554,2.6514,188.85,188.81,2.6519]
[1735624529157,29.41809648,188.87,188.81,7.77996853]
[1735624529356,29.41809648,188.87,188.83,2.6515]
[1735624529953,7.35452412,188.86,188.81,7.77996853]
[1735624530147,7.35452412,188.86,188.78,3.04]
[1735624530148,7.35452412,188.86,188.83,7.77996853]
[1735624530355,7.35452412,188.86,188.85,7.77996853]
[1735624530550,7.35452412,188.86,188.85,10.43136853]
[1735624530755,29.41809648,188.88,188.85,10.43136853]
[1735624531863,10.00532412,188.9,188.85,10.43136853]
[1735624532363,7.35452412,188.9,188.85,7.77996853]
[1735624532559,22.06357236,188.91,188.89,7.77996853]
[1735624532761,10.43957237,188.91,188.89,7.77996853]
[1735624533062,3.08477237,188.91,188.89,7.77996853]
[1735624533460,56.38469298,188.92,188.89,7.77996853]
[1735624533664,88.25428947,188.93,188.91,7.77996853]
[1735624534253,58.77824365,189.0,188.94,2.6501]
[1735624534463,58.77824365,189.0,188.96,7.77996853]
[1735624535662,2.6492,189.01,188.96,7.77996853]
[1735624538060,7.77996853,189.01,188.93,2.6502]
[1735624538265,7.77996853,189.01,188.93,7.77996853]
[1735624538967,2.6497,188.98,188.93,10.43026853]
[1735624539259,2.6497,188.98,188.93,7.77996853]
[1735624539662,7.77996853,188.99,188.93,7.77996853]
[1735624539663,2.6498,188.97,188.93,7.77996853]
[1735624543163,2.6501,188.95,188.9,7.77996853]
[1735624543370,1.5374,188.96,188.9,7.77996853]
[1735624544470,2.65,188.95,188.9,10.43066853]
[1735624546871,2.6502,188.94,188.9,7.77996853]
[1735624547069,1.5374,188.96,188.9,7.77996853]
[1735624548167,7.77996853,188.95,188.88,7.77996853]
[1735624548465,7.77996853,188.93,188.86,7.77996853]
[1735624548660,7.77996853,188.91,188.84,7.77996853]
[1735624549067,2.6508,188.89,188.84,7.77996853]